[Event "SS Manhem Chess Week GM and IM tournaments 2018"]
[Site "Molnlycke kulturhus, Biblioteksgatan 2, Molnlycke, Sweden"]
[Date "2018.08.11"]
[Round "1.6"]
[White "Nedilko, Vasily"]
[Black "Vypkhaniuk, Ihor"]
[Result "0-1"]
[TimeControl "90 minutes for 40 moves + 30 minutes for the rest of the game + 30 seconds per move from move one."]
[WhiteTitle "IM"]
[BlackTitle "FM"]
[WhiteFideId "14101459"]
[BlackFideId "14112256"]
[WhiteElo "2369"]
[BlackElo "2357"]

1. d4 {[%clk 01:30:54]} {[%emt 00:00:05]} Nf6 {[%clk 01:30:52]} {[%emt
00:00:08]} 2. c4 {[%clk 01:31:15]} {[%emt 00:00:09]} g6 {[%clk 01:31:18]}
{[%emt 00:00:04]} 3. Nf3 {[%clk 01:31:32]} {[%emt 00:00:13]} Bg7 {[%clk
01:31:40]} {[%emt 00:00:07]} 4. g3 {[%clk 01:31:52]} {[%emt 00:00:10]} O-O
{[%clk 01:31:58]} {[%emt 00:00:12]} 5. Bg2 {[%clk 01:32:15]} {[%emt 00:00:07]}
Nc6 {[%clk 01:32:14]} {[%emt 00:00:14]} 6. O-O {[%clk 01:32:18]} {[%emt
00:00:28]} d6 {[%clk 01:32:40]} {[%emt 00:00:05]} 7. Nc3 {[%clk 01:32:40]}
{[%emt 00:00:07]} e5 {[%clk 01:32:55]} {[%emt 00:00:15]} 8. d5 {[%clk
01:32:17]} {[%emt 00:00:53]} Nb8 {[%clk 01:33:19]} {[%emt 00:00:06]} 9. e4
{[%clk 01:31:01]} {[%emt 00:01:46]} a5 {[%clk 01:33:26]} {[%emt 00:00:23]} 10.
Bd2 {[%clk 01:17:50]} {[%emt 00:13:41]} Na6 {[%clk 01:32:06]} {[%emt 00:01:50]}
11. Qc2 {[%clk 01:14:25]} {[%emt 00:03:55]} Nc5 {[%clk 01:29:45]} {[%emt
00:02:50]} 12. Rab1 {[%clk 01:09:52]} {[%emt 00:05:03]} Bd7 {[%clk 01:26:53]}
{[%emt 00:03:22]} 13. b3 {[%clk 01:08:59]} {[%emt 00:01:23]} b6 {[%clk
01:24:50]} {[%emt 00:02:33]} 14. Ne1 {[%clk 01:01:51]} {[%emt 00:07:38]} Nh5
{[%clk 01:23:40]} {[%emt 00:01:39]} 15. Nd3 {[%clk 01:01:08]} {[%emt 00:01:14]}
f5 {[%clk 01:23:47]} {[%emt 00:00:23]} 16. Nxc5 {[%clk 00:56:17]} {[%emt
00:05:21]} bxc5 {[%clk 01:23:12]} {[%emt 00:01:05]} 17. Nb5 {[%clk 00:49:16]}
{[%emt 00:07:31]} Nf6 {[%clk 01:13:02]} {[%emt 00:10:39]} 18. f3 {[%clk
00:48:37]} {[%emt 00:01:10]} h5 {[%clk 01:12:27]} {[%emt 00:01:05]} 19. Bg5
{[%clk 00:40:28]} {[%emt 00:08:38]} Qb8 {[%clk 01:12:04]} {[%emt 00:00:54]} 20.
a4 {[%clk 00:40:15]} {[%emt 00:00:44]} Nh7 {[%clk 01:11:13]} {[%emt 00:01:20]}
21. Qd2 {[%clk 00:36:21]} {[%emt 00:04:23]} f4 {[%clk 01:00:56]} {[%emt
00:10:47]} 22. gxf4 {[%clk 00:36:45]} {[%emt 00:00:06]} Nxg5 {[%clk 01:00:18]}
{[%emt 00:01:08]} 23. fxg5 {[%clk 00:37:09]} {[%emt 00:00:06]} Rf4 {[%clk
00:58:44]} {[%emt 00:02:04]} 24. Nc3 {[%clk 00:30:50]} {[%emt 00:06:50]} h4
{[%clk 00:53:51]} {[%emt 00:05:23]} 25. Ne2 {[%clk 00:30:11]} {[%emt 00:01:09]}
h3 {[%clk 00:52:52]} {[%emt 00:01:30]} 26. Nxf4 {[%clk 00:30:35]} {[%emt
00:00:06]} exf4 {[%clk 00:53:15]} {[%emt 00:00:07]} 27. Qxf4 {[%clk 00:30:55]}
{[%emt 00:00:11]} Bd4+ {[%clk 00:45:58]} {[%emt 00:07:47]} 28. Kh1 {[%clk
00:31:16]} {[%emt 00:00:08]} Qb4 {[%clk 00:44:35]} {[%emt 00:01:53]} 29. Rfd1
{[%clk 00:25:48]} {[%emt 00:05:58]} Rf8 {[%clk 00:42:32]} {[%emt 00:02:32]} 30.
Qd2 {[%clk 00:25:59]} {[%emt 00:00:19]} Qxd2 {[%clk 00:42:24]} {[%emt
00:00:39]} 31. Rxd2 {[%clk 00:26:21]} {[%emt 00:00:08]} hxg2+ {[%clk 00:42:49]}
{[%emt 00:00:05]} 32. Kxg2 {[%clk 00:26:25]} {[%emt 00:00:26]} Be3 {[%clk
00:42:42]} {[%emt 00:00:36]} 33. Rd3 {[%clk 00:15:24]} {[%emt 00:11:31]} Bxg5
{[%clk 00:43:04]} {[%emt 00:00:07]} 34. Rh1 {[%clk 00:07:27]} {[%emt 00:08:26]}
Kg7 {[%clk 00:40:57]} {[%emt 00:02:38]} 35. Kg3 {[%clk 00:04:06]} {[%emt
00:03:51]} Bf4+ {[%clk 00:41:11]} {[%emt 00:00:16]} 36. Kg2 {[%clk 00:04:35]}
Rh8 {[%clk 00:41:04]} {[%emt 00:00:38]} 37. h3 {[%clk 00:02:50]} {[%emt
00:02:14]} Kh6 {[%clk 00:40:07]} {[%emt 00:01:27]} 38. Rdd1 {[%clk 00:02:35]}
{[%emt 00:00:46]} Kg5 {[%clk 00:39:14]} {[%emt 00:01:24]} 39. Kf2 {[%clk
00:00:55]} {[%emt 00:02:09]} Rb8 {[%clk 00:36:54]} {[%emt 00:02:50]} 40. Rd3
{[%clk 00:01:04]} {[%emt 00:00:21]} Kh4 {[%clk 00:35:19]} {[%emt 00:02:05]} 41.
Kg2 {[%clk 00:22:46]} {[%emt 00:08:48]} Bg3 {[%clk 01:05:22]} {[%emt 00:00:27]}
42. Rc3 {[%clk 00:19:20]} {[%emt 00:03:55]} Re8 {[%clk 01:04:39]} {[%emt
00:01:14]} 43. Rcc1 {[%clk 00:19:34]} {[%emt 00:00:16]} Bf4 {[%clk 01:03:52]}
{[%emt 00:01:16]} 44. Rcg1 {[%clk 00:18:49]} {[%emt 00:01:15]} Bg3 {[%clk
01:03:27]} {[%emt 00:00:57]} 45. Rd1 {[%clk 00:15:04]} {[%emt 00:04:15]} Rh8
{[%clk 01:02:23]} {[%emt 00:01:34]} 46. Rdg1 {[%clk 00:14:33]} {[%emt
00:01:00]} Rb8 {[%clk 01:00:17]} {[%emt 00:02:36]} 47. Rb1 {[%clk 00:14:58]}
{[%emt 00:00:06]} g5 {[%clk 00:59:21]} {[%emt 00:01:26]} 48. Rb2 {[%clk
00:10:26]} {[%emt 00:05:02]} Bxa4 {[%clk 00:59:18]} {[%emt 00:00:34]} 49. Ra2
{[%clk 00:09:27]} {[%emt 00:01:28]} Bd7 {[%clk 00:57:06]} {[%emt 00:02:42]} 0-1

[Event "SS Manhem Chess Week GM and IM tournaments 2018"]
[Site "Molnlycke kulturhus, Biblioteksgatan 2, Molnlycke, Sweden"]
[Date "2018.08.11"]
[Round "1.7"]
[White "Hobber, Anders"]
[Black "Mikalsen, Erlend"]
[Result "1-0"]
[TimeControl "90 minutes for 40 moves + 30 minutes for the rest of the game + 30 seconds per move from move one."]
[WhiteTitle "FM"]
[BlackTitle "FM"]
[WhiteFideId "1505424"]
[BlackFideId "1507338"]
[WhiteElo "2314"]
[BlackElo "2289"]

1. d4 {[%clk 01:30:43]} {[%emt 00:00:16]} Nf6 {[%clk 01:30:56]} {[%emt
00:00:05]} 2. Bf4 {[%clk 01:30:37]} {[%emt 00:00:35]} b6 {[%clk 01:31:18]}
{[%emt 00:00:07]} 3. e3 {[%clk 01:29:25]} {[%emt 00:01:42]} Bb7 {[%clk
01:31:42]} {[%emt 00:00:06]} 4. Nd2 {[%clk 01:25:39]} {[%emt 00:04:17]} d6
{[%clk 01:30:53]} {[%emt 00:01:18]} 5. Ngf3 {[%clk 01:18:57]} {[%emt 00:07:13]}
Nh5 {[%clk 01:30:38]} {[%emt 00:00:44]} 6. Bg3 {[%clk 01:18:34]} {[%emt
00:00:54]} Nxg3 {[%clk 01:29:52]} {[%emt 00:01:16]} 7. hxg3 {[%clk 01:18:51]}
{[%emt 00:00:13]} g6 {[%clk 01:29:47]} {[%emt 00:00:36]} 8. Bd3 {[%clk
01:15:57]} {[%emt 00:03:22]} Bg7 {[%clk 01:29:53]} {[%emt 00:00:24]} 9. Qe2
{[%clk 01:14:31]} {[%emt 00:01:57]} a6 {[%clk 01:23:45]} {[%emt 00:06:38]} 10.
O-O-O {[%clk 01:09:57]} {[%emt 00:05:04]} c5 {[%clk 01:21:33]} {[%emt
00:02:43]} 11. Rh4 {[%clk 00:52:59]} {[%emt 00:17:28]} Nd7 {[%clk 01:17:52]}
{[%emt 00:04:10]} 12. Rdh1 {[%clk 00:51:29]} {[%emt 00:02:00]} h6 {[%clk
01:14:25]} {[%emt 00:03:58]} 13. g4 {[%clk 00:41:51]} {[%emt 00:10:08]} b5
{[%clk 01:01:55]} {[%emt 00:12:59]} 14. c3 {[%clk 00:24:56]} {[%emt 00:17:26]}
Rg8 {[%clk 00:59:57]} {[%emt 00:02:28]} 15. g5 {[%clk 00:22:26]} {[%emt
00:03:00]} hxg5 {[%clk 00:50:02]} {[%emt 00:10:25]} 16. Nxg5 {[%clk 00:22:13]}
{[%emt 00:00:42]} e5 {[%clk 00:38:25]} {[%emt 00:12:07]} 17. f4 {[%clk
00:13:04]} {[%emt 00:09:39]} Qe7 {[%clk 00:38:07]} {[%emt 00:00:48]} 18. dxe5
{[%clk 00:12:04]} {[%emt 00:01:30]} dxe5 {[%clk 00:37:50]} {[%emt 00:00:47]} 19.
Be4 {[%clk 00:11:11]} {[%emt 00:01:22]} Bxe4 {[%clk 00:38:00]} {[%emt
00:00:21]} 20. Ndxe4 {[%clk 00:10:10]} {[%emt 00:01:31]} f5 {[%clk 00:35:22]}
{[%emt 00:03:08]} 21. Qd3 {[%clk 00:05:53]} {[%emt 00:04:48]} fxe4 {[%clk
00:35:36]} {[%emt 00:00:16]} 22. Qxe4 {[%clk 00:04:54]} {[%emt 00:01:28]} O-O-O
{[%clk 00:35:56]} {[%emt 00:00:10]} 23. Qc6+ {[%clk 00:04:57]} {[%emt
00:00:28]} Kb8 {[%clk 00:36:22]} {[%emt 00:00:04]} 24. Qxa6 {[%clk 00:04:54]}
{[%emt 00:00:33]} b4 {[%clk 00:27:34]} {[%emt 00:09:18]} 25. Ne6 {[%clk
00:04:10]} {[%emt 00:01:13]} Rc8 {[%clk 00:27:03]} {[%emt 00:01:02]} 26. Rd1
{[%clk 00:02:51]} {[%emt 00:01:49]} Nf8 {[%clk 00:25:44]} {[%emt 00:01:49]} 27.
Rd6 {[%clk 00:02:33]} {[%emt 00:00:47]} Nxe6 {[%clk 00:24:17]} {[%emt
00:01:57]} 28. Rxe6 {[%clk 00:02:18]} {[%emt 00:00:45]} Qa7 {[%clk 00:23:05]}
{[%emt 00:01:42]} 29. Qb5+ {[%clk 00:02:26]} {[%emt 00:00:22]} Kc7 {[%clk
00:23:17]} {[%emt 00:00:18]} 30. Re7+ {[%clk 00:02:49]} {[%emt 00:00:06]} 1-0

[Event "SS Manhem Chess Week GM and IM tournaments 2018"]
[Site "Molnlycke kulturhus, Biblioteksgatan 2, Molnlycke, Sweden"]
[Date "2018.08.11"]
[Round "1.8"]
[White "Kucuksari, Kaan"]
[Black "Storme, Isak"]
[Result "0-1"]
[TimeControl "90 minutes for 40 moves + 30 minutes for the rest of the game + 30 seconds per move from move one."]
[WhiteTitle "FM"]
[BlackTitle "FM"]
[WhiteFideId "6380166"]
[BlackFideId "1728113"]
[WhiteElo "2329"]
[BlackElo "2279"]

1. d4 {[%clk 01:30:58]} {[%emt 00:00:01]} Nf6 {[%clk 01:30:55]} {[%emt
00:00:05]} 2. Nf3 {[%clk 01:31:20]} {[%emt 00:00:09]} e6 {[%clk 01:31:17]}
{[%emt 00:00:08]} 3. c4 {[%clk 01:31:45]} {[%emt 00:00:05]} c5 {[%clk
01:31:43]} {[%emt 00:00:04]} 4. d5 {[%clk 01:32:09]} {[%emt 00:00:06]} d6
{[%clk 01:32:08]} {[%emt 00:00:04]} 5. Nc3 {[%clk 01:32:29]} {[%emt 00:00:11]}
exd5 {[%clk 01:32:33]} {[%emt 00:00:05]} 6. cxd5 {[%clk 01:32:52]} {[%emt
00:00:07]} g6 {[%clk 01:32:58]} {[%emt 00:00:05]} 7. Bf4 {[%clk 01:33:16]}
{[%emt 00:00:06]} Bg7 {[%clk 01:33:21]} {[%emt 00:00:07]} 8. h3 {[%clk
01:32:13]} {[%emt 00:01:33]} O-O {[%clk 01:30:38]} {[%emt 00:03:13]} 9. e3
{[%clk 01:32:41]} {[%emt 00:00:03]} Na6 {[%clk 01:30:06]} {[%emt 00:01:02]} 10.
Be2 {[%clk 01:27:44]} {[%emt 00:05:27]} Nc7 {[%clk 01:30:20]} {[%emt 00:00:16]}
11. O-O {[%clk 01:24:43]} {[%emt 00:03:31]} Rb8 {[%clk 01:26:18]} {[%emt
00:04:32]} 12. a4 {[%clk 01:22:38]} {[%emt 00:02:36]} a6 {[%clk 01:24:58]}
{[%emt 00:01:50]} 13. Rb1 {[%clk 01:13:10]} {[%emt 00:09:58]} b5 {[%clk
01:11:54]} {[%emt 00:13:33]} 14. axb5 {[%clk 01:10:21]} {[%emt 00:03:20]} axb5
{[%clk 01:10:15]} {[%emt 00:02:08]} 15. b4 {[%clk 01:08:00]} {[%emt 00:02:51]}
Bf5 {[%clk 01:08:24]} {[%emt 00:02:21]} 16. Rb3 {[%clk 01:01:00]} {[%emt
00:07:30]} c4 {[%clk 01:04:02]} {[%emt 00:04:52]} 17. Ra3 {[%clk 01:01:20]}
{[%emt 00:00:11]} Ne4 {[%clk 01:03:34]} {[%emt 00:00:57]} 18. Nxe4 {[%clk
00:54:11]} {[%emt 00:07:40]} Bxe4 {[%clk 01:02:22]} {[%emt 00:01:41]} 19. Ng5
{[%clk 00:50:44]} {[%emt 00:03:56]} Bxd5 {[%clk 01:01:28]} {[%emt 00:01:23]} 20.
Ra7 {[%clk 00:48:54]} {[%emt 00:02:21]} h6 {[%clk 00:50:41]} {[%emt 00:11:17]}
21. Nf3 {[%clk 00:49:04]} {[%emt 00:00:20]} Rb6 {[%clk 00:45:45]} {[%emt
00:05:25]} 22. Qd2 {[%clk 00:45:05]} {[%emt 00:04:29]} Be4 {[%clk 00:41:29]}
{[%emt 00:04:46]} 23. Nd4 {[%clk 00:41:03]} {[%emt 00:04:33]} Nd5 {[%clk
00:39:46]} {[%emt 00:02:12]} 24. f3 {[%clk 00:38:02]} {[%emt 00:03:31]} Nxf4
{[%clk 00:34:16]} {[%emt 00:06:01]} 25. fxe4 {[%clk 00:38:11]} {[%emt
00:00:22]} Nxe2+ {[%clk 00:33:41]} {[%emt 00:01:04]} 26. Nxe2 {[%clk 00:38:30]}
{[%emt 00:00:11]} Qb8 {[%clk 00:30:23]} {[%emt 00:03:48]} 27. Ra5 {[%clk
00:35:11]} {[%emt 00:03:50]} Qb7 {[%clk 00:29:03]} {[%emt 00:01:49]} 28. Qc2
{[%clk 00:30:40]} {[%emt 00:05:02]} d5 {[%clk 00:26:20]} {[%emt 00:03:13]} 29.
exd5 {[%clk 00:27:20]} {[%emt 00:03:51]} Qxd5 {[%clk 00:25:39]} {[%emt
00:01:10]} 30. e4 {[%clk 00:27:45]} {[%emt 00:00:05]} Qd6 {[%clk 00:23:35]}
{[%emt 00:02:34]} 31. Qb1 {[%clk 00:26:51]} {[%emt 00:01:25]} Qd2 {[%clk
00:10:35]} {[%emt 00:13:30]} 32. Nf4 {[%clk 00:25:06]} {[%emt 00:02:15]} Rf6
{[%clk 00:07:59]} {[%emt 00:03:05]} 33. g3 {[%clk 00:21:42]} {[%emt 00:03:55]}
g5 {[%clk 00:06:13]} {[%emt 00:02:15]} 34. e5 {[%clk 00:19:23]} {[%emt
00:02:50]} Qe3+ {[%clk 00:05:30]} {[%emt 00:01:12]} 35. Kg2 {[%clk 00:19:21]}
{[%emt 00:00:31]} Qxe5 {[%clk 00:05:24]} {[%emt 00:00:37]} 36. Re1 {[%clk
00:18:49]} {[%emt 00:01:02]} Qd6 {[%clk 00:04:53]} {[%emt 00:00:59]} 37. Rd1
{[%clk 00:17:47]} {[%emt 00:01:34]} Qe7 {[%clk 00:05:08]} {[%emt 00:00:14]} 38.
Nd5 {[%clk 00:17:01]} {[%emt 00:01:16]} Qe2+ {[%clk 00:05:20]} {[%emt
00:00:18]} 39. Kg1 {[%clk 00:17:12]} {[%emt 00:00:20]} Rf2 {[%clk 00:04:57]}
{[%emt 00:00:52]} 40. Ra2 {[%clk 00:17:13]} {[%emt 00:00:29]} Qxa2 {[%clk
00:04:48]} {[%emt 00:00:40]} 41. Qe4 {[%clk 00:17:18]} {[%emt 00:00:25]} 0-1

[Event "SS Manhem Chess Week GM and IM tournaments 2018"]
[Site "Molnlycke kulturhus, Biblioteksgatan 2, Molnlycke, Sweden"]
[Date "2018.08.11"]
[Round "1.9"]
[White "Rydstrom, Tom"]
[Black "Ernst, Thomas"]
[Result "1-0"]
[TimeControl "90 minutes for 40 moves + 30 minutes for the rest of the game + 30 seconds per move from move one."]
[WhiteTitle "FM"]
[BlackTitle "GM"]
[WhiteFideId "1714830"]
[BlackFideId "1700065"]
[WhiteElo "2316"]
[BlackElo "2346"]

1. e4 {[%clk 01:30:57]} {[%emt 00:00:02]} e5 {[%clk 01:30:50]} {[%emt
00:00:10]} 2. Nf3 {[%clk 01:31:24]} {[%emt 00:00:04]} Nc6 {[%clk 01:31:11]}
{[%emt 00:00:09]} 3. Bb5 {[%clk 01:31:35]} {[%emt 00:00:18]} a6 {[%clk
01:31:09]} {[%emt 00:00:33]} 4. Ba4 {[%clk 01:32:04]} {[%emt 00:00:02]} Nf6
{[%clk 01:31:23]} {[%emt 00:00:15]} 5. d3 {[%clk 01:32:30]} {[%emt 00:00:04]}
b5 {[%clk 01:30:27]} {[%emt 00:01:26]} 6. Bb3 {[%clk 01:32:58]} {[%emt
00:00:02]} Be7 {[%clk 01:30:42]} {[%emt 00:00:15]} 7. Nc3 {[%clk 01:31:46]}
{[%emt 00:01:43]} d6 {[%clk 01:29:25]} {[%emt 00:01:46]} 8. a4 {[%clk
01:30:30]} {[%emt 00:01:48]} Rb8 {[%clk 01:27:41]} {[%emt 00:02:13]} 9. axb5
{[%clk 01:30:47]} {[%emt 00:00:13]} axb5 {[%clk 01:28:04]} {[%emt 00:00:07]} 10.
Nd5 {[%clk 01:28:14]} {[%emt 00:03:03]} O-O {[%clk 01:21:16]} {[%emt 00:07:17]}
11. O-O {[%clk 01:28:19]} {[%emt 00:00:25]} Bb7 {[%clk 01:15:26]} {[%emt
00:06:20]} 12. c3 {[%clk 01:26:59]} {[%emt 00:01:50]} Ra8 {[%clk 01:14:13]}
{[%emt 00:01:43]} 13. Rxa8 {[%clk 01:26:44]} {[%emt 00:00:46]} Bxa8 {[%clk
01:14:37]} {[%emt 00:00:06]} 14. Ne3 {[%clk 01:26:49]} {[%emt 00:00:25]} Qd7
{[%clk 00:58:35]} {[%emt 00:16:31]} 15. Qe2 {[%clk 01:15:14]} {[%emt 00:12:04]}
Na5 {[%clk 00:57:18]} {[%emt 00:01:47]} 16. Ba2 {[%clk 01:15:09]} {[%emt
00:00:36]} c5 {[%clk 00:57:33]} {[%emt 00:00:15]} 17. b4 {[%clk 01:09:43]}
{[%emt 00:05:56]} cxb4 {[%clk 00:57:55]} {[%emt 00:00:09]} 18. cxb4 {[%clk
01:10:11]} {[%emt 00:00:02]} Nc6 {[%clk 00:58:00]} {[%emt 00:00:24]} 19. Bd2
{[%clk 01:10:37]} {[%emt 00:00:05]} Bd8 {[%clk 00:54:20]} {[%emt 00:04:09]} 20.
h3 {[%clk 00:49:24]} {[%emt 00:21:43]} Bb6 {[%clk 00:51:43]} {[%emt 00:03:06]}
21. Nf5 {[%clk 00:42:10]} {[%emt 00:07:46]} Ne7 {[%clk 00:47:08]} {[%emt
00:05:03]} 22. Nxe7+ {[%clk 00:38:12]} {[%emt 00:04:30]} Qxe7 {[%clk 00:47:30]}
{[%emt 00:00:08]} 23. Bg5 {[%clk 00:37:46]} {[%emt 00:00:56]} h6 {[%clk
00:46:54]} {[%emt 00:01:06]} 24. Bd2 {[%clk 00:35:17]} {[%emt 00:02:59]} Kh7
{[%clk 00:45:15]} {[%emt 00:02:09]} 25. Kh2 {[%clk 00:30:57]} {[%emt 00:04:50]}
Bb7 {[%clk 00:29:35]} {[%emt 00:16:09]} 26. Nh4 {[%clk 00:24:58]} {[%emt
00:06:29]} d5 {[%clk 00:25:35]} {[%emt 00:04:31]} 27. Nf5 {[%clk 00:24:30]}
{[%emt 00:00:59]} Qd7 {[%clk 00:25:47]} {[%emt 00:00:18]} 28. f3 {[%clk
00:24:21]} {[%emt 00:00:38]} Ra8 {[%clk 00:23:13]} {[%emt 00:03:05]} 29. Bb1
{[%clk 00:24:40]} {[%emt 00:00:12]} Ng8 {[%clk 00:22:30]} {[%emt 00:01:12]} 30.
Qe1 {[%clk 00:17:55]} {[%emt 00:07:15]} Bd8 {[%clk 00:19:24]} {[%emt 00:03:36]}
31. Kh1 {[%clk 00:11:54]} {[%emt 00:06:32]} Kh8 {[%clk 00:17:54]} {[%emt
00:01:58]} 32. Qg3 {[%clk 00:10:17]} {[%emt 00:02:08]} Bf6 {[%clk 00:18:03]}
{[%emt 00:00:21]} 33. d4 {[%clk 00:08:23]} {[%emt 00:02:24]} dxe4 {[%clk
00:15:29]} {[%emt 00:03:04]} 34. fxe4 {[%clk 00:08:52]} {[%emt 00:00:01]} Re8
{[%clk 00:15:14]} {[%emt 00:00:45]} 35. d5 {[%clk 00:08:13]} {[%emt 00:01:09]}
Kh7 {[%clk 00:14:08]} {[%emt 00:01:35]} 36. Qg4 {[%clk 00:05:28]} {[%emt
00:03:15]} Rd8 {[%clk 00:09:37]} {[%emt 00:05:02]} 37. Bd3 {[%clk 00:05:48]}
{[%emt 00:00:10]} Bxd5 {[%clk 00:09:22]} {[%emt 00:00:44]} 38. exd5 {[%clk
00:05:54]} {[%emt 00:00:25]} Qxd5 {[%clk 00:09:47]} {[%emt 00:00:04]} 39. Be4
{[%clk 00:02:48]} {[%emt 00:03:35]} Qxd2 {[%clk 00:09:45]} {[%emt 00:00:33]} 40.
Nd6+ {[%clk 00:02:55]} {[%emt 00:00:23]} g6 {[%clk 00:09:42]} {[%emt 00:00:33]}
41. Nxf7 {[%clk 00:03:22]} {[%emt 00:00:03]} Bg5 {[%clk 00:08:30]} {[%emt
00:01:41]} 42. Nxd8 {[%clk 00:03:18]} {[%emt 00:00:35]} Qxd8 {[%clk 00:08:49]}
{[%emt 00:00:11]} 43. Qe6 {[%clk 00:03:33]} {[%emt 00:00:15]} Nf6 {[%clk
00:08:41]} {[%emt 00:00:38]} 44. Qf7+ {[%clk 00:03:54]} {[%emt 00:00:08]} Kh8
{[%clk 00:09:07]} {[%emt 00:00:04]} 45. Qxg6 {[%clk 00:03:18]} {[%emt
00:01:30]} Nxe4 {[%clk 00:09:42]} {[%emt 00:00:32]} 46. Qxe4 {[%clk 00:03:41]}
{[%emt 00:00:07]} Qe7 {[%clk 00:09:21]} {[%emt 00:00:50]} 47. Ra1 {[%clk
00:01:09]} {[%emt 00:03:02]} Kg7 {[%clk 00:09:17]} {[%emt 00:00:32]} 48. Qa8
{[%clk 00:00:38]} {[%emt 00:01:03]} Qxb4 {[%clk 00:09:27]} {[%emt 00:00:20]} 49.
Ra7+ {[%clk 00:28:50]} {[%emt 00:02:18]} Kg6 {[%clk 00:36:38]} {[%emt
00:03:18]} 50. Qe8+ {[%clk 00:25:34]} {[%emt 00:03:47]} Kf5 {[%clk 00:36:48]}
{[%emt 00:00:19]} 51. Qd7+ {[%clk 00:23:24]} {[%emt 00:02:41]} Ke4 {[%clk
00:36:55]} {[%emt 00:00:23]} 52. Qc6+ {[%clk 00:23:18]} {[%emt 00:00:36]} Ke3
{[%clk 00:34:47]} {[%emt 00:02:37]} 53. Qf3+ {[%clk 00:23:20]} {[%emt
00:00:29]} Kd4 {[%clk 00:34:19]} {[%emt 00:00:58]} 54. Rd7+ {[%clk 00:23:05]}
{[%emt 00:00:45]} Kc5 {[%clk 00:32:52]} {[%emt 00:01:57]} 55. Qd5+ {[%clk
00:23:05]} {[%emt 00:00:31]} Kb6 {[%clk 00:33:15]} {[%emt 00:00:07]} 56. Rb7+
{[%clk 00:23:28]} {[%emt 00:00:06]} Ka5 {[%clk 00:33:19]} {[%emt 00:00:26]} 57.
Qa2+ {[%clk 00:23:37]} {[%emt 00:00:21]} Qa4 {[%clk 00:33:35]} {[%emt
00:00:14]} 58. Ra7+ {[%clk 00:24:04]} {[%emt 00:00:05]} Kb4 {[%clk 00:33:52]}
{[%emt 00:00:12]} 59. Rxa4+ {[%clk 00:24:32]} {[%emt 00:00:02]} bxa4 {[%clk
00:34:17]} {[%emt 00:00:05]} 60. Qb2+ {[%clk 00:23:25]} {[%emt 00:01:37]} Kc4
{[%clk 00:34:35]} {[%emt 00:00:09]} 61. Qxe5 {[%clk 00:22:33]} {[%emt
00:01:25]} a3 {[%clk 00:34:44]} {[%emt 00:00:21]} 62. Qe6+ {[%clk 00:22:23]}
{[%emt 00:00:40]} Kb4 {[%clk 00:35:05]} {[%emt 00:00:08]} 63. Qa2 {[%clk
00:22:48]} {[%emt 00:00:05]} Bc1 {[%clk 00:35:16]} {[%emt 00:00:18]} 64. g4
{[%clk 00:22:56]} {[%emt 00:00:23]} Bb2 {[%clk 00:35:16]} {[%emt 00:00:30]} 65.
Kg2 {[%clk 00:23:11]} {[%emt 00:00:15]} Kc5 {[%clk 00:35:35]} {[%emt 00:00:11]}
66. Kf3 {[%clk 00:23:30]} {[%emt 00:00:10]} 1-0